bitfinex-derivatives/quotes_ETHF0:USTF0_20250326
["timestamp","ask_amount","ask_price","bid_price","bid_amount"]
[1742960469582,3.02213,2047.4,2047.3,45.77274628]
[1742960469786,2.37723,2047.4,2047.3,45.77274628]
[1742960469979,2.37723,2047.4,2047.3,44.79597628]
[1742960470880,2.37723,2047.4,2047.3,46.10127628]
[1742960471581,2.37723,2047.4,2047.3,3.28777628]
[1742960471785,2.37723,2047.4,2047.3,0.07997628]
[1742960471786,5.58503,2047.4,2047.3,0.07997628]
[1742960473278,0.97687,2047.1,2047.0,40.8]
[1742960473471,0.97706,2046.7,2046.6,3.2078]
[1742960473672,3.2078,2046.8,2046.7,0.97706]
[1742960473878,2.0554,2047.0,2046.5,1.3314]
[1742960473879,4.6356,2047.0,2046.6,40.8]
[1742960474080,2.39359,2046.9,2046.8,0.977]
[1742960474279,2.39359,2046.9,2046.7,0.97703]
[1742960474280,0.97702,2046.8,2046.7,0.97703]
[1742960474481,1.4166,2046.8,2046.7,0.97703]
[1742960474676,2.39361,2046.8,2046.7,0.97703]
[1742960474874,1.4166,2046.8,2046.7,0.97703]
[1742960475074,3.2078,2047.1,2046.6,46.45056]
[1742960475281,3.2078,2046.7,2046.4,2.4665644]
[1742960475581,4.5943,2047.0,2046.9,0.97697]
[1742960475982,4.5943,2047.0,2046.7,40.8]
[1742960476279,2.36349,2046.9,2046.8,0.97701]
[1742960476588,0.97701,2046.8,2046.7,40.8]
[1742960476783,2.36351,2046.8,2046.7,40.8]
[1742960477579,0.977,2046.9,2046.7,41.77702]
[1742960477777,1.3687,2046.9,2046.7,40.8]
[1742960477977,2.34567,2046.9,2046.8,0.6766]
[1742960481187,2.34567,2046.9,2046.8,1.65361]
[1742960481589,1.3687,2046.9,2046.8,1.65361]
[1742960481885,2.34567,2046.9,2046.8,0.6766]
[1742960482987,2.34567,2046.9,2046.8,1.65361]
[1742960483487,0.97697,2046.9,2046.8,1.65361]
[1742960484091,2.28267,2046.9,2046.8,1.65361]
[1742960484991,3.2078,2047.0,2046.9,0.97697]
[1742960485288,5.49046,2047.0,2046.9,1.64467]
[1742960485986,4.5135,2047.0,2046.9,1.64467]
[1742960486189,3.2078,2047.0,2046.9,1.64467]
[1742960487787,4.18472,2047.0,2046.9,1.64467]
[1742960489093,3.2078,2047.0,2046.9,1.64467]
[1742960491194,4.18472,2047.0,2046.9,1.64467]
[1742960491698,3.2078,2047.0,2046.9,1.64467]
[1742960493192,3.2078,2047.0,2046.9,2.98007]
[1742960495098,4.18472,2047.0,2046.9,2.98007]
[1742960495296,5.59362,2047.0,2046.9,2.98007]
[1742960497396,4.6167,2047.0,2046.9,2.98007]
[1742960498608,3.8802,2047.3,2047.2,0.97682]
[1742960498798,4.4964,2047.3,2047.2,0.97682]
[1742960499197,1.2886,2047.3,2047.2,0.97682]
[1742960499398,1.2886,2047.3,2047.2,5.49062]
[1742960499588,3.2078,2047.6,2047.5,0.97668]
[1742960499794,0.00731529,2047.7,2047.6,0.97663]
[1742960499986,0.00731529,2047.7,2047.6,2.96723]
[1742960500396,0.00731529,2047.7,2047.6,43.76723]
[1742960501405,1.29841529,2047.7,2047.6,43.76723]
[1742960503805,3.2078,2048.0,2047.9,0.97649]
[1742960504195,4.18424,2048.0,2047.9,0.97649]
[1742960505004,3.2078,2048.0,2047.7,0.67501529]
[1742960505202,1.3426,2047.9,2047.8,2.28771]
[1742960512102,0.97654,2047.8,2047.7,0.00731529]
[1742960512306,2.30464,2047.8,2047.7,0.00731529]
[1742960512707,1.3281,2047.8,2047.7,0.98389529]
[1742960513106,2.6792,2047.8,2047.7,2.34889529]
[1742960513407,3.65574,2047.8,2047.7,2.34889529]
[1742960513701,3.65574,2047.8,2047.7,0.00731529]
[1742960515602,2.6792,2047.8,2047.7,0.98389529]
[1742960515802,2.6792,2047.8,2047.7,2.28359529]
[1742960517007,1.3511,2047.8,2047.7,2.28359529]
[1742960517199,1.3511,2047.8,2047.7,3.65109529]
[1742960519705,1.3511,2047.8,2047.7,2.98829529]
[1742960519904,2.32764,2047.8,2047.7,0.00731529]
[1742960520796,1.3511,2047.8,2047.7,0.98389529]
[1742960520997,1.3511,2047.8,2047.7,2.29439529]
[1742960521410,2.32764,2047.8,2047.7,2.29439529]
[1742960521708,2.32764,2047.8,2047.7,0.00731529]
[1742960524607,5.53544,2047.8,2047.7,0.00731529]
[1742960524800,4.5589,2047.8,2047.7,0.98389529]
[1742960525001,5.53544,2047.8,2047.7,1.33441529]
[1742960526607,5.53544,2047.8,2047.7,0.00731529]
[1742960528105,0.97677,2047.3,2047.0,0.6642]
[1742960528304,0.97682,2047.2,2047.1,0.97686]
[1742960528506,0.97681,2047.3,2047.1,0.98686]
[1742960528706,0.6833,2047.2,2047.1,0.98686]
[1742960529011,0.6833,2047.2,2047.1,2.39736]
[1742960529215,3.00192,2047.2,2047.1,42.2205]
[1742960529412,3.00192,2047.2,2047.1,40.81]
[1742960529806,3.00192,2047.2,2047.1,40.8]
[1742960530514,3.00192,2047.2,2047.1,41.77687]
[1742960530816,1.3418,2047.2,2047.1,41.77687]
[1742960531616,2.0134,2047.2,2047.1,41.77687]
[1742960532007,1.3418,2047.2,2047.1,41.77687]
[1742960532313,1.3418,2047.2,2047.1,42.47027]
[1742960536819,0.6716,2047.4,2047.3,0.97677]
[1742960537016,1.3247,2047.4,2047.3,0.97677]
[1742960537513,1.3247,2047.4,2047.3,1.61737]
[1742960537711,0.7003,2047.6,2047.5,0.97668]
[1742960537911,1.3247,2047.6,2047.5,0.97668]
[1742960538312,1.3247,2047.6,2047.5,2.25928]
[1742960557425,2.30133,2047.6,2047.5,2.25928]
[1742960557724,2.30133,2047.6,2047.4,0.97669]
[1742960557923,5.1968,2047.5,2047.1,41.77684]
[1742960558136,0.97682,2047.2,2047.1,41.77684]
[1742960558330,0.97682,2047.2,2047.1,40.8]
[1742960558538,3.2078,2047.2,2046.8,5.2658]
[1742960558734,0.97693,2047.0,2046.9,0.97696]
[1742960558934,0.97693,2047.0,2046.9,41.77696]
[1742960559140,2.29873,2047.0,2046.9,40.8]
[1742960560125,2.29873,2047.0,2046.9,41.77697]
[1742960560126,1.3218,2047.0,2046.9,41.77697]
[1742960560339,1.3218,2047.0,2046.9,0.97697]
[1742960560631,1.3218,2047.0,2046.9,2.29637]
[1742960562635,1.3218,2047.0,2046.9,4.57637]
[1742960562838,0.00731529,2047.2,2047.1,0.97687]
[1742960563034,0.00731529,2047.2,2047.1,41.77687]
[1742960563830,0.00731529,2047.2,2047.1,43.08637]
[1742960564338,0.00731529,2047.2,2047.1,46.29417]
[1742960564533,0.00731529,2047.2,2047.1,48.68417]
[1742960567745,1.4067,2047.4,2047.3,0.97677]
[1742960567930,1.4067,2047.4,2047.3,4.16077]
[1742960568335,1.4067,2047.4,2047.3,6.13977]
[1742960568734,3.2078,2047.5,2047.4,0.97673]
[1742960569040,0.00731529,2047.6,2047.5,0.97668]
[1742960569250,0.00731529,2047.6,2047.5,2.72958]
[1742960569543,0.00731529,2047.6,2047.5,2.33958]
[1742960570335,0.657,2047.9,2047.8,0.97654]
[1742960570336,1.3226,2047.9,2047.8,0.97654]
[1742960589351,2.2991,2047.9,2047.5,4.18448]
[1742960589559,1.3378,2047.8,2047.7,0.97654]
[1742960589748,2.7082,2047.8,2047.7,0.97654]
[1742960591959,3.68474,2047.8,2047.7,0.97654]
[1742960592159,2.7082,2047.8,2047.7,0.97654]
[1742960592461,0.97661,2047.7,2047.5,0.97666]
[1742960592658,5.57241,2047.7,2047.6,0.97663]
[1742960593252,4.5958,2047.7,2047.6,0.97663]
[1742960596462,4.5958,2047.7,2047.5,0.97667]
[1742960596463,5.57242,2047.7,2047.5,0.97667]
[1742960596663,5.57242,2047.7,2047.1,40.80731529]
[1742960596664,1.3413,2047.6,2047.1,40.80731529]
[1742960596959,3.2078,2047.4,2047.3,0.97677]
[1742960597359,5.2511,2047.4,2047.3,0.97677]
[1742960597759,6.22783,2047.4,2047.2,0.97678]
[1742960598063,1.3413,2047.3,2047.2,0.97678]
[1742960603864,1.3413,2047.3,2047.1,42.12431529]
[1742960603865,2.31811,2047.3,2047.1,41.78416529]
[1742960604066,0.7052,2047.2,2047.1,0.98416529]
[1742960604367,3.07272,2047.2,2047.1,0.98416529]
[1742960604570,3.07272,2047.2,2047.1,0.00731529]
[1742960606361,3.07272,2047.2,2046.6,0.9771]
[1742960606362,7.03804,2047.2,2046.6,0.9771]
[1742960606565,3.2078,2046.7,2046.6,0.9771]
[1742960606761,3.2078,2046.7,2046.6,41.7771]
[1742960608272,5.53776,2046.7,2046.6,40.8]
[1742960608768,4.5607,2046.7,2046.6,41.77711]
[1742960609770,5.2231,2046.7,2046.6,41.77711]
[1742960610269,6.20016,2046.7,2046.6,41.77711]
[1742960610470,5.2231,2046.7,2046.6,41.77711]
[1742960610665,5.2231,2046.7,2046.6,40.8]
[1742960610666,6.20016,2046.7,2046.6,40.8]
[1742960614376,8.70016,2046.7,2046.6,40.8]
[1742960614579,0.97716,2046.5,2046.4,0.03089969]
[1742960615171,6.65816,2046.5,2046.4,0.03089969]
[1742960615378,0.97742,2046.0,2045.9,0.97742]
[1742960615575,0.97742,2046.0,2045.9,0.97741]
[1742960615576,0.97739,2046.0,2045.9,0.97741]
[1742960615875,4.18517,2046.1,2046.0,0.97739]
[1742960616070,0.97744,2045.9,2045.8,2.26046]
[1742960616276,3.2078,2046.1,2045.8,2.26046]
[1742960616277,1.66043,2046.0,2045.8,1.283]
[1742960616468,0.683,2046.0,2045.8,2.26046]
[1742960616668,1.66044,2046.0,2045.8,2.26047]
[1742960616976,0.97744,2045.9,2045.8,2.26047]
[1742960617179,0.97744,2045.9,2045.8,1.283]
[1742960617881,0.6839,2045.9,2045.2,3.2078]
[1742960618180,2.44397,2045.6,2044.9,3.2078]
[1742960618374,3.191,2045.8,2044.9,3.2078]
[1742960618375,3.2078,2045.3,2044.9,40.8]
[1742960618571,3.2078,2045.3,2045.0,2.7601]
[1742960618783,1.3526,2045.2,2045.0,2.7601]
[1742960619178,1.3526,2045.2,2044.9,40.8]
[1742960619179,1.3526,2045.2,2044.4,3.2078]
[1742960619379,1.3526,2045.2,2044.6,0.97806]
[1742960619380,3.2078,2044.7,2044.6,0.97806]
[1742960619587,3.2078,2044.7,2044.6,0.96390036]
[1742960619792,3.2078,2044.7,2044.6,41.76390036]
[1742960619990,3.2078,2044.7,2044.6,41.81147869]
[1742960620395,4.5604,2045.0,2044.9,0.97792]
[1742960620594,4.54624036,2045.0,2044.9,0.97792]
[1742960620896,3.2078,2045.0,2044.9,1.07307666]
[1742960621090,0.97774,2045.3,2044.9,0.09515666]
[1742960621293,0.97778,2045.2,2045.1,0.14273499]
[1742960621490,0.97778,2045.2,2045.1,40.94273499]
[1742960622380,0.97774,2045.3,2045.1,41.92052499]
[1742960622589,4.83611,2045.4,2045.2,0.97778]
[1742960622788,3.8584,2045.4,2045.1,40.94273499]
[1742960622988,3.8584,2045.4,2045.3,0.97773]
[1742960623396,3.2078,2045.4,2045.3,1.12046499]
[1742960623697,3.2078,2045.4,2045.3,1.16804332]
[1742960623900,2.0551,2045.7,2045.6,0.97759]
[1742960624194,8.13691529,2045.8,2045.7,0.97754]
[1742960624195,3.21511529,2045.8,2045.7,0.97754]
[1742960624398,3.21511529,2045.8,2045.3,3.39811332]
[1742960624598,3.94754835,2045.5,2045.3,2.3168]
[1742960624782,1.3653,2045.4,2045.3,2.3168]
[1742960624986,1.3653,2045.4,2045.3,0.9777]
[1742960625183,1.3653,2045.4,2045.3,0.02383561]
[1742960625381,2.343,2045.4,2045.3,0.02383561]
[1742960626183,2.343,2045.4,2045.3,1.00156561]
[1742960626389,2.343,2045.4,2045.3,0.02383561]
[1742960626591,1.3653,2045.4,2045.3,1.00156561]
[1742960627190,1.3653,2045.4,2045.3,0.02383561]
[1742960627191,2.34298,2045.4,2045.3,0.02383561]
[1742960628196,5.60198,2045.4,2045.3,0.02383561]
[1742960628393,4.6243,2045.4,2045.3,1.00156561]
[1742960630099,2.34298,2045.4,2045.3,1.00156561]
[1742960630300,2.34298,2045.4,2045.3,0.02383561]
[1742960631201,2.34298,2045.4,2045.3,1.04889757]
[1742960631704,0.88717283,2045.3,2045.2,2.26045]
[1742960632002,2.29527283,2045.3,2045.2,2.26045]
[1742960633507,1.4081,2045.3,2045.2,2.26045]
[1742960633700,1.4081,2045.3,2045.2,2.95565]
[1742960635404,2.96990835,2045.5,2045.4,0.97768]
[1742960635604,4.27410835,2045.5,2045.4,0.97768]
[1742960636203,2.96990835,2045.5,2045.4,2.39208]
[1742960637305,2.96990835,2045.5,2045.4,2.43939701]
[1742960638200,2.96990835,2045.5,2045.4,2.45880156]
[1742960643906,2.96990835,2045.5,2045.4,2.50612768]
[1742960645205,2.96990835,2045.5,2045.4,2.39208]
[1742960645411,2.96990835,2045.5,2045.4,2.52547641]
[1742960648109,2.96990835,2045.5,2045.4,1.54779641]
[1742960648315,3.94753835,2045.5,2045.4,0.13339641]
[1742960648713,5.30903835,2045.5,2045.4,0.13339641]
[1742960648919,4.33140835,2045.5,2045.4,1.11107641]
[1742960650115,5.02560835,2045.5,2045.4,1.11107641]
[1742960651218,5.02560835,2045.5,2045.4,1.15845979]
[1742960651720,6.00323835,2045.5,2045.4,1.15845979]
[1742960651921,6.00323835,2045.5,2045.4,0.20011797]
[1742960653722,6.00323835,2045.5,2045.4,1.17779797]
[1742960653928,5.02560835,2045.5,2045.4,1.17779797]
[1742960654109,4.33140835,2045.5,2045.4,1.17779797]
[1742960654315,4.33140835,2045.5,2045.4,1.85109797]
[1742960655025,4.33140835,2045.5,2045.4,1.17779797]
[1742960656229,2.96990835,2045.5,2045.4,1.17779797]
[1742960657536,2.96990835,2045.5,2045.4,4.47607023]
[1742960658625,2.96990835,2045.5,2045.4,4.49547282]
[1742960664032,2.96990835,2045.5,2045.4,4.54274007]
[1742960665231,2.96990835,2045.5,2045.4,4.56219438]
[1742960665932,2.96990835,2045.5,2045.4,1.31119438]
[1742960666325,2.96990835,2045.5,2045.4,2.71609438]
[1742960666633,4.37790835,2045.5,2045.4,2.71609438]
[1742960667729,4.37790835,2045.5,2045.4,1.31119438]
[1742960668835,4.37790835,2045.5,2045.4,3.40869438]
[1742960669730,3.21511529,2045.8,2045.7,0.97754]
[1742960670232,3.21511529,2045.8,2045.7,1.31105438]
[1742960670734,3.21511529,2045.8,2045.7,42.14126098]
[1742960671139,3.21511529,2045.8,2045.7,43.50226098]
[1742960671938,3.21511529,2045.8,2045.7,43.53241947]
[1742960672936,3.21511529,2045.8,2045.7,43.53877594]
[1742960678645,3.21511529,2045.8,2045.7,43.58586696]
[1742960679634,3.21511529,2045.8,2045.7,43.60545079]
[1742960681043,3.21511529,2045.8,2045.7,1.44445079]
[1742960681633,4.51011529,2045.8,2045.7,1.44445079]
[1742960682742,5.48760529,2045.8,2045.7,0.46691079]
[1742960683140,5.48760529,2045.8,2045.1,2.0145]
[1742960683141,7.01011529,2045.8,2045.1,2.0145]
[1742960683339,3.2078,2045.5,2045.1,42.8145]
[1742960683538,3.2078,2045.5,2045.1,42.45239]
[1742960683539,1.943,2045.4,2045.1,42.45239]
[1742960683735,1.295,2045.3,2045.2,0.97778]
[1742960683941,1.295,2045.3,2045.1,42.45239]
[1742960685246,1.295,2045.3,2045.2,1.02510737]
[1742960685442,1.295,2045.3,2045.2,0.04732737]
[1742960685944,1.295,2045.3,2045.2,1.02510737]
[1742960686132,1.295,2045.3,2045.2,0.04732737]
[1742960686339,1.966,2045.3,2045.2,0.04732737]
[1742960686538,2.94373,2045.3,2045.2,0.06665571]
[1742960691036,0.97792,2044.9,2044.6,0.6927]
[1742960691340,0.97803,2044.7,2044.6,0.97802]
[1742960691540,5.1723,2044.8,2044.5,0.97807]
[1742960691541,0.97808,2044.6,2044.5,0.97807]
[1742960691735,1.2925,2044.7,2044.6,0.97806]
[1742960691946,3.8798,2044.8,2044.7,0.97802]
[1742960692146,4.84361036,2044.8,2044.7,40.84733833]
[1742960692850,3.86564036,2044.8,2044.7,41.82535833]
[1742960693050,4.84361036,2044.8,2044.7,41.84474156]
[1742960694349,5.49751036,2044.8,2044.7,41.84474156]
[1742960695038,3.8617,2044.8,2044.7,1.04474156]
[1742960695246,4.83967,2044.8,2044.7,1.04474156]
[1742960695441,3.2078,2044.8,2044.7,1.04474156]
[1742960695742,3.2078,2044.8,2044.7,2.44364156]
[1742960696449,0.00733335,2044.9,2044.8,0.97797]
[1742960696650,0.00733335,2044.9,2044.8,1.67057]
[1742960697248,3.2078,2045.3,2044.9,2.44476]
[1742960697456,3.2078,2045.3,2045.2,0.97778]
[1742960698254,3.2078,2045.3,2045.2,1.73710156]
[1742960698656,3.2078,2045.3,2045.2,1.78444375]
[1742960699055,3.2078,2045.3,2045.2,42.58444375]
[1742960699752,3.2078,2045.3,2045.2,42.60382312]
[1742960701859,4.18553,2045.3,2045.2,41.62604312]
[1742960702050,4.18553,2045.3,2045.2,0.13344312]
[1742960703454,5.59583,2045.3,2045.2,0.13344312]
[1742960705151,4.6181,2045.3,2045.2,1.11122312]
[1742960705351,4.6181,2045.3,2045.2,1.15856793]
[1742960705760,4.6181,2045.3,2045.2,2.49826793]
[1742960706558,4.6181,2045.3,2045.2,2.51764468]
[1742960707462,3.2078,2045.3,2045.2,2.51764468]
[1742960707754,1.3386,2045.4,2045.3,0.97773]
[1742960708654,1.3386,2045.4,2045.3,1.17789468]
[1742960710058,0.00733335,2045.5,2045.4,0.97768]
[1742960710248,0.00733335,2045.5,2045.4,5.56758]
[1742960710452,1.3465,2045.8,2045.7,0.97754]
[1742960710656,1.3465,2045.8,2045.7,1.17770468]
[1742960711055,1.3465,2046.0,2045.9,0.97744]
[1742960711651,1.3465,2046.0,2045.9,1.17760468]
[1742960712054,1.3465,2046.0,2045.9,0.97744]
[1742960712261,1.3465,2046.0,2045.9,1.22495211]
[1742960713168,1.3465,2046.0,2045.9,1.24432624]
[1742960714268,1.3465,2046.0,2045.9,2.61432624]
[1742960718470,2.32389,2046.0,2045.9,1.24432624]
[1742960718665,2.32389,2046.0,2045.9,0.26688624]
[1742960718861,2.32389,2046.0,2045.9,0.30734136]
[1742960721571,2.98569,2046.0,2045.9,0.30734136]
[1742960723670,1.3465,2046.0,2045.9,1.28478136]
[1742960727879,3.21513335,2046.2,2046.1,0.97735]
[1742960728064,4.51593335,2046.2,2046.1,0.97735]
[1742960728467,3.2078,2046.5,2046.4,0.97717]
[1742960728662,1.3435,2046.6,2046.5,0.97716]
[1742960728974,0.97705,2046.8,2046.5,0.30734136]
[1742960729183,1.3435,2046.9,2046.5,0.30734136]
[1742960729474,2.32049,2046.9,2046.7,0.97704]
[1742960729680,1.3008,2046.8,2046.7,0.97704]
[1742960730067,1.3008,2046.8,2046.7,1.28438136]
[1742960730474,1.3008,2046.8,2046.7,2.64888136]
[1742960730777,1.3008,2046.8,2046.7,3.30818136]
[1742960731371,2.27781,2046.8,2046.7,0.30734136]
[1742960731576,2.98651,2046.8,2046.7,0.30734136]
[1742960731768,0.97711,2046.6,2046.5,0.00733335]
[1742960733973,4.20911,2046.6,2046.5,0.00733335]
[1742960734477,3.232,2046.6,2046.5,0.00733335]
[1742960734677,4.20911,2046.6,2046.5,0.00733335]
[1742960735179,4.86681,2046.6,2046.5,0.00733335]
[1742960735770,4.86681,2046.6,2046.5,0.98449335]
[1742960735973,4.86681,2046.6,2046.5,0.00733335]
[1742960736280,4.86681,2046.6,2046.5,0.98449335]
[1742960736574,4.86681,2046.6,2046.5,0.00733335]
[1742960740378,0.97744,2045.9,2045.8,0.6886]
[1742960740881,0.97749,2045.8,2045.7,2.0047]
[1742960741183,1.63369,2045.8,2045.7,2.0047]
[1742960741581,1.63369,2045.8,2045.7,1.3521]
[1742960742079,0.97754,2045.7,2045.6,49.285]
[1742960742280,0.97759,2045.6,2045.5,0.00733335]
[1742960742475,6.33309,2045.6,2045.1,44.0078]
[1742960742781,0.97775,2045.3,2045.1,44.9856]
[1742960742977,1.3036,2045.2,2045.1,44.9856]
[1742960743379,1.3036,2045.2,2044.8,50.6201]
[1742960743576,1.3036,2045.2,2044.9,0.9779]
[1742960743883,2.28142,2045.2,2045.0,40.8]
[1742960744086,0.97782,2045.1,2045.0,40.8]
[1742960744386,2.28142,2045.1,2045.0,40.8]
[1742960744779,1.3036,2045.1,2045.0,41.77787]
[1742960745178,2.28142,2045.1,2045.0,40.8]
[1742960747189,2.28142,2045.1,2044.8,1.35343335]
[1742960747190,0.97792,2044.9,2044.8,1.35343335]
[1742960747783,2.27222,2044.9,2044.8,1.35343335]
[1742960748583,2.27222,2044.9,2044.8,0.00733335]
[1742960748787,1.2943,2044.9,2044.8,0.00733335]
[1742960748989,1.2943,2044.9,2044.8,0.98530335]
[1742960749186,4.21875,2045.3,2044.8,0.00733335]
[1742960749384,1.4079,2045.1,2044.9,0.6906]
[1742960749584,3.241,2045.3,2045.0,0.6688]
[1742960749783,1.4079,2045.2,2045.0,1.64665]
[1742960750190,1.4079,2045.2,2045.0,0.6688]
[1742960750492,1.4079,2045.2,2044.9,0.6906]
[1742960750493,0.97785,2045.1,2044.9,0.6906]
[1742960750792,1.4079,2045.0,2044.9,1.3594]
[1742960751183,2.38577,2045.0,2044.9,1.3594]
[1742960752086,0.97792,2044.9,2044.8,0.00733335]
[1742960752285,2.28492,2044.9,2044.8,0.00733335]
[1742960753392,0.97811,2044.5,2044.4,3.2078]
[1742960753587,0.97811,2044.5,2044.4,3.19364036]
[1742960753783,0.97806,2044.6,2044.4,3.19364036]
[1742960754087,2.28511,2044.5,2044.4,3.19364036]
[1742960754283,2.44541,2044.4,2043.5,3.2078]
[1742960754485,3.2078,2044.1,2043.8,1.2838]
[1742960754687,3.2078,2044.1,2043.8,42.0838]
[1742960754989,0.00733335,2044.2,2044.1,0.9783]
[1742960757085,0.00733335,2044.2,2044.1,42.474]
[1742960760397,0.00733335,2044.2,2044.1,1.674]
[1742960760694,0.98559335,2044.2,2044.1,0.6957]
[1742960761096,0.98559335,2044.2,2044.1,1.674]
[1742960761097,0.00733335,2044.2,2044.1,1.674]
[1742960761296,2.31019335,2044.2,2044.1,0.6957]
[1742960761492,2.31019335,2044.2,2044.0,42.8141]
[1742960761493,0.9783,2044.1,2044.0,42.8141]
[1742960761698,4.5324,2044.1,2044.0,43.79245]
[1742960761994,4.5324,2044.1,2044.0,42.8141]
[1742960761995,5.5107,2044.1,2044.0,42.8141]
[1742960762301,5.5107,2044.1,2043.6,0.6983]
[1742960762499,6.2099,2044.1,2043.9,0.97839]
[1742960762690,0.97835,2044.0,2043.9,0.97839]
[1742960762999,0.97835,2044.0,2043.7,2.0368]
[1742960763000,0.97845,2043.8,2043.7,2.0368]
[1742960763200,3.2078,2043.8,2043.7,2.31099]
[1742960763597,4.5324,2043.8,2043.7,2.31099]
[1742960763793,3.907,2044.1,2044.0,0.97835]
[1742960763991,0.97843,2043.9,2043.7,2.31096]
[1742960764192,1.385,2043.8,2043.7,2.31096]
[1742960764695,1.385,2043.8,2043.6,40.8]
[1742960764893,5.57125,2043.8,2043.6,41.77851]
[1742960765090,4.5928,2043.8,2043.7,0.97849]
[1742960765297,4.5928,2043.8,2043.7,1.3294]
[1742960765600,5.57125,2043.8,2043.7,1.3294]
[1742960766100,5.57125,2043.8,2043.7,2.30789]
[1742960766297,5.57125,2043.8,2043.7,1.3294]
[1742960766603,4.5928,2043.8,2043.7,2.30789]
[1742960767102,5.57125,2043.8,2043.7,1.3294]
[1742960767296,5.57127,2043.8,2043.4,1.388]
[1742960767599,4.5928,2043.8,2043.5,1.3937]
[1742960767794,5.57128,2043.8,2043.6,41.77853]
[1742960767999,0.97849,2043.7,2043.6,41.77853]
[1742960768208,2.31809,2043.7,2043.6,40.8]
[1742960768401,1.3396,2043.7,2043.6,41.77854]
[1742960768600,2.31809,2043.7,2043.6,41.77854]
[1742960768797,3.2078,2043.8,2043.7,0.97849]
[1742960769001,3.2078,2043.8,2043.7,2.37219]
[1742960769202,3.2078,2043.8,2043.6,40.8]
[1742960769495,3.2078,2043.8,2043.2,0.01998]
[1742960769496,0.97858,2043.6,2043.4,0.97864]
[1742960769697,1.3396,2043.5,2043.4,3.02544]
[1742960769904,4.18626,2043.8,2043.6,0.97852]
[1742960770103,1.2915,2043.7,2043.6,0.97852]
[1742960770301,1.2915,2043.7,2043.4,42.8468]
[1742960770302,2.27001,2043.7,2043.5,0.97857]
[1742960771000,2.27001,2043.7,2043.4,41.4531]
[1742960771001,1.2915,2043.7,2043.6,0.97854]
[1742960774715,0.6588,2044.0,2043.6,3.2078]
[1742960774907,1.3757,2043.9,2043.8,0.97845]
[1742960775400,1.3757,2043.9,2043.8,1.65385]
[1742960777507,3.2078,2044.1,2044.0,0.97835]
[1742960778106,0.00733335,2044.2,2044.1,0.9783]
[1742960780124,0.69183335,2044.2,2044.1,0.9783]
[1742960780520,2.06333335,2044.2,2044.1,0.9783]
[1742960780824,1.37883335,2044.2,2044.1,0.9783]
[1742960783624,1.06588,2927.5,2044.7,0.97802]
[1742960783625,3.2078,2044.8,2044.7,0.97802]
[1742960783819,0.97802,2044.7,2044.6,0.97803]
[1742960784127,3.88954036,2044.8,2044.6,0.96387036]
[1742960784316,0.97802,2044.7,2044.6,0.96387036]
[1742960784518,4.85337072,2044.8,2044.7,0.97802]
[1742960784718,3.86122108,2044.8,2044.7,0.97802]
[1742960784923,5.16982108,2044.8,2044.7,0.97802]
[1742960785323,5.16982108,2044.8,2044.7,41.77802]
[1742960785628,6.14779108,2044.8,2044.7,40.8]
[1742960785829,5.16982108,2044.8,2044.7,41.77802]
[1742960786223,6.14779108,2044.8,2044.7,40.8]
[1742960786628,6.14779108,2044.8,2044.7,41.77802]
[1742960787027,6.14779108,2044.8,2044.7,0.97802]
[1742960787223,5.16982108,2044.8,2044.7,0.97802]
[1742960787531,0.97805,2044.7,2044.5,0.98543335]
[1742960787723,1.3179,2044.6,2044.5,0.97127371]
[1742960787923,1.3179,2044.6,2044.5,2.32207371]
[1742960788620,3.86122108,2044.8,2044.7,0.97802]
[1742960788816,3.15116144,2044.8,2044.7,0.97802]
[1742960791432,0.00733335,2045.0,2044.7,2.38]
[1742960791633,0.00733335,2045.0,2044.9,0.97792]
[1742960792136,0.00733335,2045.0,2044.8,0.97794]
[1742960792434,3.01081335,2045.0,2044.8,0.97794]
[1742960792636,3.69031335,2045.0,2044.8,0.97794]
[1742960793226,0.97793,2044.9,2044.7,2.92438]
[1742960793442,1.3868,2044.8,2044.7,2.92438]
[1742960797533,1.3868,2044.8,2044.7,5.06438]
[1742960797837,0.64613335,2045.0,2044.9,0.97792]
[1742960798030,0.00733335,2045.0,2044.9,0.97792]
[1742960798831,1.40703335,2045.0,2044.9,2.33052]
[1742960799435,0.00733335,2045.0,2044.9,2.33052]
[1742960799741,0.00733335,2045.0,2044.9,4.62052]
[1742960800036,3.2078,2045.1,2045.0,0.97787]
[1742960800237,3.2078,2045.1,2045.0,6.85907]
[1742960800433,2.0555,2045.4,2045.3,0.97773]
[1742960806744,1.3543,2045.4,2045.3,0.97773]
[1742960809845,1.3543,2045.4,2045.3,2.34613]
[1742960817044,1.3543,2045.4,2045.3,1.3684]
[1742960817346,1.3543,2045.4,2045.2,41.77774]
[1742960817347,2.332,2045.4,2045.2,0.97778]
[1742960817548,0.6433,2045.3,2045.2,1.12778]
[1742960817750,2.0322,2045.3,2045.2,43.27018]
[1742960820448,3.00993,2045.3,2045.1,1.66232335]
[1742960820643,4.4999,2045.2,2045.1,0.98512335]
[1742960820947,5.174,2045.2,2045.1,0.98512335]
[1742960822247,6.15178,2045.2,2045.1,0.00733335]
[1742960822641,0.97791,2045.0,2044.8,0.97793]
[1742960822949,0.97793,2044.9,2044.8,40.8]
[1742960823142,0.97793,2044.9,2044.8,41.77797]
[1742960823143,2.0694,2044.9,2044.8,41.77797]
[1742960823345,2.0694,2044.9,2044.8,40.8]
[1742960823651,3.04732,2044.9,2044.8,40.8]
[1742960823949,2.0694,2044.9,2044.8,0.97797]
[1742960824140,3.04735,2044.9,2044.7,0.97798]
[1742960824443,1.3848,2044.8,2044.7,0.97798]
[1742960824850,3.276,2045.2,2044.8,0.97797]
[1742960824851,3.2078,2045.2,2044.8,0.97797]